Cogmind - Beta 11 X7 @@@ ROGUE MODE // 2021.09.30 @ 22:03:21 Player: LU-1G1 Result: Self-destructed Performance ------------- Evolutions (3) 1500 Regions Visited (6) 1200 Robots Destroyed (33) 165 Value Destroyed (856) 856 Prototype IDs (25) 500 Alien Tech Used (0) 0 Bonus (498) 498 TOTAL SCORE: 4719 Bonus ------- High Alert Combat Kills 49 Follower Combat Kills 149 Aligned with FarCom 300 Cogmind --------- Core Integrity 591/700 Matter 177/300 Energy 100/100 System Corruption 2% Temperature Cool (0) Movement Core (1350) Ox26 Location -7/Factory Parts ------- > --- POWER (1) -------- (None) > --- PROPULSION (4) --- (None) > --- UTILITY (6) ------ Army-in-a-Box (27/30) > --- WEAPON (2) ------- (None) > --- INVENTORY (5) ---- Improved Cesium-ion Thruster Peak State ------------ > --- POWER ------------ Cooled Ion Engine > --- PROPULSION ------- Flying Fortress v7 > --- UTILITY ---------- Small Storage Unit Advanced Trap Scanner Signal Interpreter Improved Terrain Scanner Improved Light Armor Plating Trap Reconfigurator > --- WEAPON ----------- Shock Bomb Launcher Heavy Mace > --- INVENTORY -------- Improved Cesium-ion Thruster Launcher Guidance Computer Army-in-a-Box [Rating: 71] Favorites ----------- Power Fission Core Engine Light Ion Engine Power Core Fission Core Propulsion Compact Wheel Treads Light Treads Wheel Compact Wheel Flight Unit Flying Fortress v7 Utility Targeting Computer Device Improved Terrain Scanner Storage Huge Storage Unit Processor Targeting Computer Protection Medium Armor Plating Weapon Small Laser Energy Gun Small Laser Ballistic Gun Assault Rifle Launcher Rocket Launcher Impact Weapon Heavy Mace Build | -11 -10 -10 -10 -9 -8 -7 ------- Run | Scr Mat Min Exi Min Mat Fac Slots Evolved 6 | . . . . . 4 2 Power . | . . . . . . . Propulsion 2 | . . . . . 1 1 Utility 4 | . . . . . 3 1 Weapon . | . . . . . . . Parts Attached 51 | 6 11 5 2 1 5 21 Power 5 | 1 . 1 1 . . 2 Engine 3 | 1 . 1 . . . 1 Core 2 | . . . 1 . . 1 Reactor . | . . . . . . . Propulsion 17 | 2 8 4 . . 1 2 Treads 2 | 1 1 . . . . . Leg . | . . . . . . . Wheel 13 | 1 7 4 . . 1 . Hover . | . . . . . . . Flight 2 | . . . . . . 2 Utility 17 | 1 2 . . . 3 11 Device 5 | . . . . . . 5 Storage 5 | 1 1 . . . . 3 Processor 3 | . 1 . . . . 2 Hackware . | . . . . . . . Protection 4 | . . . . . 3 1 Artifact . | . . . . . . . Weapon 12 | 2 1 . 1 1 1 6 Energy Gun 6 | 1 1 . 1 1 1 1 Energy Cannon . | . . . . . . . Ballistic Gun 1 | 1 . . . . . . Ballistic Cannon . | . . . . . . . Launcher 3 | . . . . . . 3 Special Weapon . | . . . . . . . Impact Weapon 2 | . . . . . . 2 Slashing Weapon . | . . . . . . . Piercing Weapon . | . . . . . . . Special Melee Weapon . | . . . . . . . Unidentified Prototypes 2 | . . . . . . 2 Parts Lost 8 | . 2 5 . . . 1 Power 2 | . . 1 . . . 1 Propulsion 4 | . 1 3 . . . . Utility . | . . . . . . . Weapon 2 | . 1 1 . . . . Highest Loss Streak 4 | . 1 4 . . . 1 Average Slot Usage (%) 91 | . 99 84 91 100 98 69 Engine 5 | . 14 4 8 . . 1 Core 5 | . . . 5 14 9 4 Wheel 22 | . 24 26 28 28 27 . Flight 1 | . . . . . . 6 Device 2 | . . . . . . 15 Storage 11 | . 14 14 14 14 9 6 Processor 12 | . 13 14 14 14 9 11 Protection 5 | . . . . . 25 7 Energy Gun 18 | . 20 24 19 28 18 4 Ballistic Gun 1 | . 7 . . . . . Naked Turns 1 | . . . . . . 1 Heaviest Build 115 | 12 87 86 92 92 115 115 Greatest Support 50 | 20 40 32 32 32 48 50 Greatest Overweight (x) 26 | 3 5 8 2 2 2 26 Average Overweight (x) 1 | 1 2 3 2 2 1 . Largest Inventory Capacity 25 | 8 25 25 25 25 25 25 Average Capacity 21 | 7 22 25 25 25 25 8 Most Carried 25 | 7 17 24 25 25 25 25 Average Carried 18 | 3 12 20 24 24 24 8 Final Capacity 25 | 8 25 25 25 25 25 5 Final Carried 25 | 7 17 24 25 25 25 1 Class Distribution -------------------- 64% | Mutant 35% | Scavenger-Mutant Dominant Class ---------------- Mutant | -10/Materials Mutant | -10/Mines Mutant | -10/Exiles Scavenger-Mutant | -9/Mines Scavenger-Mutant | -8/Materials Mutant | -7/Factory Resources | -11 -10 -10 -10 -9 -8 -7 ----------- Run | Scr Mat Min Exi Min Mat Fac Matter Collected 936 | 278 309 112 20 10 50 157 Remotely . | . . . . . . . Salvage Created 1136 | 97 566 154 . 128 50 141 Parts 69 | 6 38 5 . 8 4 8 Haulers Intercepted 3 | . 2 . . . . 1 Recyclers Shooed 4 | . 3 . . 1 . . Parts Field Recycled . | . . . . . . . Retrieved Matter . | . . . . . . . Parts Self-Destructed . | . . . . . . . Prevented . | . . . . . . . Kills | -11 -10 -10 -10 -9 -8 -7 ------- Run | Scr Mat Min Exi Min Mat Fac Combat Hostiles Destroyed 25 | . 11 4 . 4 1 5 Guns 20 | . 11 4 . 4 1 . AOE 5 | . . . . . . 5 Classes Destroyed 12 | 2 4 3 . 1 1 1 Worker 2 | . . 2 . . . . Tunneler 1 | 1 . . . . . . Hauler 3 | . 2 . . . . 1 Recycler 2 | 1 1 . . . . . Watcher 1 | . 1 . . . . . Swarmer 7 | . 3 . . 2 . 2 Grunt 13 | . 8 2 . 1 . 2 Duelist 1 | . . . . 1 . . Sentry 1 | . . . . . 1 . Demolisher 1 | . . 1 . . . . Programmer 1 | . . . . . . 1 Assembled 1 | . . 1 . . . . Best Kill Streak 5 | 1 4 3 . 2 1 5 Combat Bots Only 5 | . 3 2 . 2 1 5 Max Kills in Single Turn 2 | 1 1 1 . 1 1 2 Gunslinging . | . . . . . . . Exploded 2 | . . . . . . 2 Melee . | . . . . . . . Uniques/NPCs Destroyed . | . . . . . . . Combat | -11 -10 -10 -10 -9 -8 -7 -------- Run | Scr Mat Min Exi Min Mat Fac Damage Taken 1313 | . 369 210 . 37 106 591 Core 172 | . 39 14 . 10 . 109 Absorbed by Shields . | . . . . . . . Core Remaining (%) 91 | 100 . . . 74 100 . Volleys Fired 80 | 7 39 13 . 7 5 9 Largest 2 | 2 2 2 . 2 2 1 Hottest 90 | 70 90 90 . 80 80 80 Shots Fired 141 | 14 70 24 . 14 10 9 Gun 135 | 14 70 24 . 14 10 3 Cannon . | . . . . . . . Launcher 6 | . . . . . . 6 Special . | . . . . . . . Kinetic 33 | 7 26 . . . . . Thermal 102 | 7 44 24 . 14 10 3 Explosive 6 | . . . . . . 6 Electromagnetic . | . . . . . . . Robot Hit Streak 15 | 4 11 15 . 9 4 6 Robot Miss Streak 3 | 3 2 1 . 2 1 3 Penetration Max . | . . . . . . . Secondary Targets 2 | . 2 . . . . . Max Gunslinging Chain 1 | . 1 . . . . . Shots Hit Robots 101 | 8 53 18 . 8 6 8 Core Hits 58 | 3 25 10 . 6 3 11 Critical Kills . | . . . . . . . Critical Parts Destroyed . | . . . . . . . Critical Strikes 4 | . 3 1 . . . . Burn 4 | . 3 1 . . . . Melee Attacks 2 | . . . . . . 2 Impact 2 | . . . . . . 2 Slashing . | . . . . . . . Piercing . | . . . . . . . Sneak Attacks . | . . . . . . . Combat Hostiles . | . . . . . . . Follow-up Attacks . | . . . . . . . Damage Inflicted 2097 | 101 725 212 . 122 66 871 Guns 1217 | 101 700 212 . 93 66 45 Cannons . | . . . . . . . Explosions 826 | . . . . . . 826 Melee . | . . . . . . . Ramming 54 | . 25 . . 29 . . Kinetic 274 | 37 237 . . . . . Thermal 943 | 64 463 212 . 93 66 45 Explosive 826 | . . . . . . 826 Electromagnetic . | . . . . . . . Impact . | . . . . . . . Slashing . | . . . . . . . Piercing . | . . . . . . . Highest Corruption 2 | . 2 2 2 2 . 2 Average Corruption 1 | . 2 2 2 2 . 1 Corruption Purged . | . . . . . . . Effects 18 | . 5 2 4 6 . 1 Message Errors 7 | . 1 . 2 3 . 1 Heat Flow Errors 2 | . . . 1 1 . . Energy Discharges 4 | . 2 . 1 1 . . Data Loss (minor) 4 | . 1 2 . 1 . . Weapon Failures 1 | . 1 . . . . . Overload Shots . | . . . . . . . Overflow Damage 21 | . . . . 7 . 14 Projectiles . | . . . . . . . Explosions 14 | . . . . . . 14 Melee 7 | . . . . 7 . . Knockbacks 1 | . . . . 1 . . Impact 1 | . . . . 1 . . Kinetic . | . . . . . . . Secondary . | . . . . . . . Self-Inflicted Damage 30 | . 12 . . 14 . 4 Shots 1 | . . . . . . 1 Rammed 2 | . 1 . . 1 . . Targets Rammed 2 | . 1 . . 1 . . Kicked . | . . . . . . . Crushed . | . . . . . . . Highest Temperature 279 | 54 222 228 279 148 126 76 Average Temperature 64 | 25 65 89 143 44 55 28 Received Heat Transfer 279 | . 162 54 . . 27 36 Siege Activations . | . . . . . . . Robots Corrupted . | . . . . . . . Combat Hostiles . | . . . . . . . Parts Fried . | . . . . . . . Impact Corruptions 1 | . . . . 1 . . Robots Melted . | . . . . . . . Combat Hostiles . | . . . . . . . Parts Melted 3 | . 2 1 . . . . Heat Transferred 2799 | 185 1544 620 . 200 150 100 Parts Sabotaged . | . . . . . . . Parts Stolen . | . . . . . . . Parts Stripped . | . . . . . . . Power Chain Reactions . | . . . . . . . Missiles Intercepted . | . . . . . . . Alert | -11 -10 -10 -10 -9 -8 -7 ------- Run | Scr Mat Min Exi Min Mat Fac Peak Influence 614 | 10 268 182 . 118 65 614 Initial 104 | . 6 104 . . . 29 Average 121 | 3 138 133 . 40 18 292 Maximum Alert Level 2 | . 1 . . . . 2 Low Security (%) 83 | 100 87 100 . 100 100 28 Level 1 10 | . 12 . . . . 37 Level 2 6 | . . . . . . 34 Level 3 . | . . . . . . . Level 4 . | . . . . . . . Level 5 . | . . . . . . . High Security . | . . . . . . . Max Security . | . . . . . . . Squads Dispatched 8 | . 3 . . . 1 4 Investigation 5 | . 3 . . . 1 1 Extermination 1 | . . . . . . 1 Reinforcement 2 | . . . . . . 2 Assault . | . . . . . . . Garrison . | . . . . . . . Intercept . | . . . . . . . Construction Impeded 1 | . . . . . . 1 Haulers Reinforced . | . . . . . . . Active Scanning Responses . | . . . . . . . Cargo Convoy Interrupts . | . . . . . . . Stealth | -11 -10 -10 -10 -9 -8 -7 --------- Run | Scr Mat Min Exi Min Mat Fac Distress Signals 2 | . 2 . . . . . Communications Jammed . | . . . . . . . Distress Signals . | . . . . . . . Times Spotted 52 | . 18 5 . 6 4 19 Peak Tracking Total 12 | . 4 2 . 3 2 12 Tactical Retreats 6 | . 2 . . . . 4 Traps | -11 -10 -10 -10 -9 -8 -7 ------- Run | Scr Mat Min Exi Min Mat Fac Traps Triggered 2 | . . . . . 1 1 Indirectly . | . . . . . . . Trap Hack Attempts . | . . . . . . . Triggered . | . . . . . . . Disarmed . | . . . . . . . Reprogrammed . | . . . . . . . Reused . | . . . . . . . Traps Reconfigurated 5 | . . . . . . 5 Traps Extracted . | . . . . . . . Installed . | . . . . . . . Triggered . | . . . . . . . Machines | -11 -10 -10 -10 -9 -8 -7 ---------- Run | Scr Mat Min Exi Min Mat Fac Machines Disabled 1 | . . . . . . 1 Max in Single Turn 1 | . . . . . . 1 Garrison Access 1 | . . . . . . 1 Machines Sabotaged . | . . . . . . . Garrisons Compromised . | . . . . . . . Overloaded Fab Kills . | . . . . . . . Fab Network Shutdowns . | . . . . . . . Hacking | -11 -10 -10 -10 -9 -8 -7 --------- Run | Scr Mat Min Exi Min Mat Fac Machines Accessed 20 | . 7 1 2 . 3 7 Terminals 13 | . 4 1 . . 3 5 Fabricators 1 | . . . . . . 1 Repair Stations 1 | . 1 . . . . . Recycling Units 2 | . 2 . . . . . Scanalyzers . | . . . . . . . Garrison Access 1 | . . . . . . 1 Total Hacks 50 | . 20 5 2 . 7 16 Successful 27 | . 12 2 2 . 3 8 Failed 23 | . 8 3 . . 4 8 Catastrophic 7 | . 4 . . . 1 2 Database Lockouts . | . . . . . . . Manual 28 | . 8 4 1 . 6 9 Terminals 35 | . 11 5 . . 7 12 Fabricators 2 | . . . . . . 2 Repair Stations 7 | . 7 . . . . . Recycling Units 2 | . 2 . . . . . Scanalyzers . | . . . . . . . Garrison Access 2 | . . . . . . 2 Terminal Hacks 12 | . 4 2 2 . 2 2 Record 1 | . . . 1 . . . Part Schematic 1 | . 1 . . . . . Robot Schematic 1 | . . 1 . . . . Branch Access Points 2 | . 1 . . . . 1 Hauler Manifests 2 | . 1 . . . 1 . Registered Components 1 | . 1 . . . . . Zone Layout 3 | . . 1 . . 1 1 EX-Prototype ID Bank 1 | . . . 1 . . . Fabricator Hacks 1 | . . . . . . 1 Build 1 | . . . . . . 1 Repair Station Hacks 6 | . 6 . . . . . Scan Component 3 | . 3 . . . . . Repair 3 | . 3 . . . . . Recycling Unit Hacks . | . . . . . . . Scanalyzer . | . . . . . . . Garrison Access Hacks . | . . . . . . . Unauthorized Hacks 8 | . 2 . . . 1 5 Terminals 4 | . . . . . 1 3 Assimilate 1 | . . . . . . 1 Botnet 1 | . . . . . . 1 Operators 2 | . . . . . 1 1 Fabricators 1 | . . . . . . 1 Prioritize 1 | . . . . . . 1 Repair Stations . | . . . . . . . Recycling Units 2 | . 2 . . . . . Tunnel 2 | . 2 . . . . . Scanalyzers . | . . . . . . . Garrison Access 1 | . . . . . . 1 Jam 1 | . . . . . . 1 Data Cores Recovered . | . . . . . . . Used . | . . . . . . . Hacking Detections 15 | . 5 1 . . 2 7 Full Trace Events 3 | . 2 1 . . . . Feedback Events . | . . . . . . . Feedback Blocked . | . . . . . . . Robot Schematics Acquired 1 | . . 1 . . . . Robots Built . | . . . . . . . Matter . | . . . . . . . Time . | . . . . . . . Total Robot Build Rating . | . . . . . . . Part Schematics Acquired 1 | . 1 . . . . . Parts Built 2 | . . . . . . 2 Matter 234 | . . . . . . 234 Time 117 | . . . . . . 117 Total Part Build Rating 14 | . . . . . . 14 Parts Repaired 3 | . 3 . . . . . Time 78 | . 78 . . . . . Parts Recycled . | . . . . . . . Recycled Matter . | . . . . . . . Retrieved Matter . | . . . . . . . Retrieved Components . | . . . . . . . Parts Scanalyzed . | . . . . . . . Part Schematics Acquired . | . . . . . . . Parts Damaged . | . . . . . . . Bothacking | -11 -10 -10 -10 -9 -8 -7 ------------ Run | Scr Mat Min Exi Min Mat Fac Used RIF Installer . | . . . . . . . Robots Hacked . | . . . . . . . Non-combat . | . . . . . . . Combat . | . . . . . . . Robot Hacks Applied . | . . . . . . . Relay Couplers Released . | . . . . . . . Robots Rewired . | . . . . . . . Allies Hacked . | . . . . . . . Hacks Repelled . | . . . . . . . Allies | -11 -10 -10 -10 -9 -8 -7 -------- Run | Scr Mat Min Exi Min Mat Fac Total Allies 5 | . . 4 . 1 . . Largest Group 4 | . . 4 4 4 2 . Highest-Rated Group 71 | . . 71 71 71 62 . Highest-Rated Ally 31 | . . 31 31 31 31 . Total Orders 2 | . . . . . . 2 RETURN 2 | . . . . . . 2 Ally Attacks 48 | . . 15 . 24 3 6 Total Damage 464 | . . 134 . 194 21 115 Kills 6 | . . 1 . 3 1 1 Allies Corrupted . | . . . . . . . Allies Melted . | . . . . . . . Intel | -11 -10 -10 -10 -9 -8 -7 ------- Run | Scr Mat Min Exi Min Mat Fac Robot Analysis Total . | . . . . . . . Derelict Logs Recovered 1 | . . . . 1 . . Drone Launches 5 | . . . . . . 5 Drone Recoveries 2 | . . . . . . 2 Exploration | -11 -10 -10 -10 -9 -8 -7 ------------- Run | Scr Mat Min Exi Min Mat Fac Turns Passed 3344 | 112 775 443 401 478 591 544 Spaces Moved 2249 | 65 412 275 297 315 171 714 Core 19 | 15 . . . . . 4 Treads 25 | 2 23 . . . . . Legs . | . . . . . . . Wheels 1510 | 48 389 275 297 315 171 15 Hover . | . . . . . . . Flight 695 | . . . . . . 695 Fastest Speed 50 | 50 95 130 130 130 115 50 Average Speed 107 | 103 131 138 130 130 127 57 Slowest Speed 1350 | 200 360 200 130 130 130 1350 Overloaded Moves . | . . . . . . . Propulsion Burnouts . | . . . . . . . Robots Hopped 7 | . . . . . . 7 Cave-ins Triggered . | . . . . . . . Exploration Rate (%) 42 | 4 78 41 69 62 21 23 Regions Visited 6 Branch Regions 3 Pre-discovered Areas 4 | . 2 . 1 1 . . Known Exits Taken 1 | . 1 . . . . . Unknown Exits Taken 5 | 1 . 1 1 1 1 . Scrap Searched 1 | . . . . 1 . . Spaces Dug 2 | . . . . . . 2 Terrain Destroyed 47 | . . . . . . 47 Melee 2 | . . . . . . 2 Projectile . | . . . . . . . AOE 45 | . . . . . . 45 Terrain Rammed . | . . . . . . . Walls Destroyed . | . . . . . . . Machines Disabled . | . . . . . . . Actions | -11 -10 -10 -10 -9 -8 -7 --------- Run | Scr Mat Min Exi Min Mat Fac Total 3033 | 92 570 312 316 370 537 836 Wait 575 | 8 94 12 6 44 349 62 Move 2229 | 64 411 274 296 314 170 700 Hop 7 | . . . . . . 7 Pick Up 40 | 7 11 8 3 1 4 6 Fast Attach 22 | 6 3 2 . . 3 8 Attach 11 | . 1 2 2 . 1 5 Detach 1 | . . . . . . 1 Swap 18 | . 7 1 . 1 1 8 Drop 46 | . 3 . 9 2 4 28 Fire 80 | 7 39 13 . 7 5 9 Melee 2 | . . . . . . 2 Ram 2 | . 1 . . 1 . . Kick . | . . . . . . . Crush . | . . . . . . . Escape Stasis . | . . . . . . . Rewire . | . . . . . . . Trap . | . . . . . . . Miscellaneous . | . . . . . . . Route ------- -11/Scrapyard -10/Materials (discovered 3 exits: [*Mat x2] / *Min) -10/Mines -10/Exiles -9/Mines -8/Materials -7/Factory (discovered 3 exits: *Fac / *Low x2) History --------- Turn | Location | Event 16 | -11/Scrapyard | Discovered new exit (range 16) 113 | -11/Scrapyard | Entered Materials 302 | -10/Materials | Build established: Mutant 369 | -10/Materials | Discovered new exit (range 3) 632 | -10/Materials | Discovered new exit (range 13) 757 | -10/Materials | Repaired Com. Wheel 786 | -10/Materials | Repaired Com. Wheel 814 | -10/Materials | Repaired Wheel 829 | -10/Materials | Identified exit to Mines 888 | -10/Materials | Entered Mines 1048 | -10/Mines | Assembled infested the area 1052 | -10/Mines | Found a hidden stash of uninstalled traps 1053 | -10/Mines | Assisted by a Guerilla fighting off Assembled 1107 | -10/Mines | Met a Derelict testing a Signal Generator 1112 | -10/Mines | Assisted by bots powering up and referring to "LRC-V3" 1130 | -10/Mines | Found Signal Generator 1269 | -10/Mines | Lost 4 parts (3n1w) 1319 | -10/Mines | Deemed a non-threat by the Exiles lab entrance 1319 | -10/Mines | Discovered new exit (range 5) 1331 | -10/Mines | Entered Exiles 1331 | -10/Exiles | Accompanied by 4 allies 1364 | -10/Exiles | Met 8R-AWN 1385 | -10/Exiles | Met EX-HEX 1450 | -10/Exiles | Met EX-DEC 1472 | -10/Exiles | Learned location of Zion (-7) 1497 | -10/Exiles | Met EX-BIN 1520 | -10/Exiles | Aligned with FarCom system 1521 | -10/Exiles | Given EX-Vault access code 1554 | -10/Exiles | Opened EX-Vault 1567 | -10/Exiles | Found Flying Fortress v7 1571 | -10/Exiles | Found Trap Reconfigurator 1581 | -10/Exiles | Found Army-in-a-Box 1607 | -10/Exiles | Warned to stay clear of 0b10 Research branches 1715 | -10/Exiles | Discovered new exit (range 10) 1732 | -10/Exiles | Stole three prototypes: Flying Fortress v7, Trap Reconfigurator, Army-in-a-Box 1732 | -10/Exiles | Entered Mines 1732 | -9/Mines | Accompanied by 4 allies 1768 | -9/Mines | A weapon hastily lodged in a ceiling crevice suddenly fell to the ground 1971 | -9/Mines | Received a Rocket Launcher from a helpful Derelict 2148 | -9/Mines | Build established: Scavenger-Mutant 2148 | -9/Mines | Discovered new exit (range 5) 2160 | -9/Mines | Escorted by a lone wolf Derelict 2210 | -9/Mines | Entered Materials 2210 | -8/Materials | Accompanied by 2 allies 2210 | -8/Materials | Evolved 4 slots: Propulsion x1, Utility x3 2762 | -8/Materials | Discovered new exit (range 13) 2801 | -8/Materials | Entered Factory 2801 | -7/Factory | Evolved 2 slots: Propulsion x1, Utility x1 2803 | -7/Factory | FarCom data flow suspended 3023 | -7/Factory | Fabricated Adv. Trap Scanner? 3158 | -7/Factory | Identified exit to Lower Caves 3158 | -7/Factory | Discovered new exit (range 14) 3191 | -7/Factory | Identified exit to Factory 3294 | -7/Factory | Released all parts (10) 3316 | -7/Factory | Build established: Mutant 3345 | -7/Factory | Self-destructed Last Messages --------------- 03279_ Dropped Hvy. Mace. 03282_ Connecting with Terminal... 03294_ Released Adv. Trap Scanner. 03294_ Released Cld. Ion Engine. 03294_ Released Sml. Storage Unit. 03294_ Released Trap Reconfigurator. 03294_ Released Imp. Light Armor Plating. 03294_ Released Imp. Terrain Scanner. 03294_ Released Signal Interpreter. 03294_ Released Flying Fortress v7. 03294_ Released Shock Bomb Launcher. 03294_ Released Great Maul. 03295_ Acquired Army-in-a-Box. 03297_ Army Drone released from Army-in-a-Box. 03301_ P-60 Hacker destroyed. 03301_ Army Drone retrieved by Army-in-a-Box. 03305_ The unstable cave ceiling collapses. 03329_ Acquired Prototype Flight Unit. 03329_ Identified Imp. Cesium-ion Thruster. 03343_ The unstable cave ceiling collapses. Map ----- +----------------------------------------------------+ | ??????????????????????#?????????? | | #???????????????????????????????? | | ????????????????????????????????? | | ????????????????????????????????? | | ????????????????????????????????? | | ???????????????#?##????#????????? | | ###?????????????## #######????? | | ???????? ?????? [ #????? | | #????#???????#????????# # /?? | | ##########????#####+###+## # # | | # ?? #?# ## # ? | | # """"" #?# """ ## # # | | # """"" #?# """ ""## # # | | + """ #?# """ ""## + # | | # #?# T"## # # | | # ]#?# / ""## #/ # | | # / #?# ""# ##?? | | #############?# / ??? | | #?????#############"#### > #??? | | #???#?# ### % ###? | | #?????# """ """ ### ###| # ##? | | ####### """ """ # #? | | # """ """ #???# ! #? | | # ##??#!!*] #? | | # """ """ #???#! n[! ##? | | + """ """ #???#n@n ] #?# | | # """ """ #???# [/ #?? | | # #???########?? | | # ! #????????????? | | #### # ! #????????????? | | ???# # #????????????? | | ???# ##############????????????? | | ???# #?????????#????? ?????????? | | ???# #??????#??????????????????? | | ???# ?????????????????????????? | | ??## ?????????????????????????? | | ???# ????????? ???????????????? | | ??## ?????????????????????????? | | ???# ##????????????????????????? | | ???? #?????????????????????????? | | ???? ??????????????????????????? | | ???? ??????????????????????????? | | ???? ??????????????????????????? | | ????????????????????????????????? | | ????????????????????????????????? | | ????????????????????????????????? | | ????????????????????????????????? | | ????????????????????????????????? | | ????????????????????????????????? | | ????????????????????????????????? | +----------------------------------------------------+ Best States ------------- Heat Dissipation 34 Energy Generation 23 Energy Capacity 310 Matter Stores 300 Matter Capacity 300 Sight Range 18 Terrain Scan Range 16 Terrain Scan Density 10 ECM Strength 2 Armor Coverage 675 Evasion (%) 60 Targeting Accuracy 5 Recoil Reduction 2 Item Schematics ----------------- Med. Storage Unit | -10/Materials | Hacked Robot Schematics ------------------ O-16 Technician | -10/Mines | Hacked Fabricated ------------ Adv. Trap Scanner | x2 | -7/Factory | Preloaded Alien Tech Used ----------------- None Achievements -------------- None Challenges ------------ None Game ------ Seed AssembledShockArray Manual? 0 Play Time 00:31:22 Cumulative 418.0 hours Start 2021.09.30 @ 20:55:42 End 2021.09.30 @ 22:03:21 Sessions 1 Manual Loads 0 Difficulty Rogue Special Mode None Game No. 404 Rogue 189 Adventurer 112 Explorer 103 Win Type - Total 29 Types 21/0/5/2/0/0/0/1/0 Lore% 84 Gallery% 90 Achievement% 77 Wizard Run 0 Options --------- ASCII 0 Keyboard 0 Movement Numpad Keybinds 0 Fullscreen 2 Font 18/TerminusBold Map View 76x50 Tactical HUD 1 Map Filters NONE Filters NONE Steam 1 RUN: f735ab87-b3e7-49d3-9327-34193a07c73a